bitfinex/quotes_SOLUSD_20250401
["timestamp","ask_amount","ask_price","bid_price","bid_amount"]
[1743517481596,0.14216157,125.56,125.51,27.8861]
[1743517482282,0.28432314,125.57,125.51,27.9491]
[1743517482597,0.03,125.6,125.51,27.9491]
[1743517482598,40.03961581,125.6,125.51,27.9491]
[1743517482806,0.31432314,125.6,125.55,20.0]
[1743517483588,40.03961581,125.6,125.56,7.9643]
[1743517483787,0.31432314,125.6,125.56,7.9643]
[1743517483985,0.03,125.6,125.56,27.875]
[1743517484190,0.03,125.6,125.56,67.6965]
[1743517484796,0.03,125.6,125.59,20.0]
[1743517485804,0.03,125.6,125.59,27.9624]
[1743517486895,0.03,125.6,125.59,7.9624]
[1743517487193,0.17216157,125.6,125.59,7.9624]
[1743517487576,0.03,125.6,125.59,7.9624]
[1743517487782,0.03,125.6,125.56,19.9107]
[1743517487999,0.03,125.6,125.59,20.0]
[1743517489380,0.03,125.6,125.56,19.9107]
[1743517491210,0.17216157,125.6,125.56,19.9107]
[1743517491876,0.17216157,125.6,125.56,27.875]
[1743517493292,0.03,125.6,125.56,27.875]
[1743517494197,0.03,125.6,125.55,7.9649]
[1743517494401,0.03,125.6,125.55,27.8772]
[1743517494794,18.82181043,125.6,125.55,27.8772]
[1743517495203,0.28432314,125.58,125.55,7.9649]
[1743517495497,0.28432314,125.58,125.53,19.9153]
[1743517495698,0.28432314,125.56,125.52,7.9668]
[1743517495885,40.00961581,125.56,125.52,7.9668]
[1743517496089,40.00961581,125.56,125.51,0.063]
[1743517496285,0.28432314,125.56,125.51,0.063]
[1743517497484,18.79181043,125.59,125.51,0.063]
[1743517497690,0.28432314,125.59,125.52,20.0]
[1743517498083,0.28432314,125.59,125.53,8.84]
[1743517498282,0.14216157,125.59,125.54,27.8794]
[1743517498898,0.31432314,125.6,125.54,27.8794]
[1743517499580,40.03961581,125.6,125.54,27.8794]
[1743517500093,0.14216157,125.58,125.54,7.9655]
[1743517500295,0.14216157,125.58,125.53,7.9662]
[1743517500502,0.28432314,125.58,125.53,27.8817]
[1743517500877,0.14216157,125.58,125.53,27.8817]
[1743517501074,0.03,125.6,125.53,27.8817]
[1743517501075,0.14216157,125.59,125.53,27.8817]
[1743517501884,0.03,125.6,125.53,27.8817]
[1743517502186,0.03,125.6,125.53,70.5594]
[1743517502721,0.14216157,125.59,125.53,27.8817]
[1743517503507,0.17216157,125.6,125.53,27.8817]
[1743517504105,0.17216157,125.6,125.53,67.7128]
[1743517504308,0.03,125.6,125.53,74.292]
[1743517506898,0.03,125.6,125.56,20.0]
[1743517507215,0.0001,125.6,125.58,20.0]
[1743517507791,0.0001,125.6,125.59,7.9624]
[1743517508001,0.0001,125.62,125.61,20.0]
[1743517508489,0.063,125.66,125.63,20.0]
[1743517508688,0.0001,125.66,125.64,2.883]
[1743517509086,0.0001,125.66,125.65,8.76]
[1743517509498,0.03,125.73,125.68,20.0]
[1743517509918,0.03,125.73,125.69,7.956]
[1743517510216,0.03,125.73,125.69,27.8462]
[1743517510603,0.03,125.73,125.69,7.956]
[1743517511298,0.14216157,125.72,125.67,7.9573]
[1743517511505,0.28432314,125.69,125.65,7.9586]
[1743517512013,0.28432314,125.69,125.63,27.8579]
[1743517512221,39.72529267,125.72,125.63,27.8579]
[1743517512222,0.14216157,125.72,125.63,27.8579]
[1743517512921,0.14216157,125.71,125.63,27.8579]
[1743517513120,0.14216157,125.69,125.63,27.8579]
[1743517513296,0.14216157,125.69,125.63,7.9598]
[1743517513297,0.14216157,125.67,125.63,7.9598]
[1743517513613,0.14216157,125.67,125.62,7.9603]
[1743517513919,0.14216157,125.67,125.61,27.8639]
[1743517514418,0.5,125.74,125.61,27.8639]
[1743517514419,39.75529267,125.73,125.65,20.0]
[1743517514719,18.963972,125.73,125.65,20.0]
[1743517515106,0.31432314,125.73,125.65,20.0]
[1743517515437,0.31432314,125.73,125.66,6.4442]
[1743517515438,0.03,125.73,125.66,6.4442]
[1743517515629,0.03,125.73,125.67,8.7]
[1743517515832,0.03,125.73,125.68,27.8484]
[1743517516129,0.17216157,125.73,125.68,7.9567]
[1743517516806,0.03,125.73,125.68,27.8484]
[1743517517696,0.03,125.73,125.67,8.7]
[1743517517697,0.14216157,125.72,125.67,7.9571]
[1743517517902,0.14216157,125.71,125.66,7.9579]
[1743517518526,8.26792314,125.73,125.66,27.8528]
[1743517518732,0.31432314,125.73,125.66,27.8528]
[1743517518920,0.03,125.73,125.66,30.7581]
[1743517519729,0.03,125.73,125.66,70.548]
[1743517520028,0.03,125.73,125.69,20.0]
[1743517522029,0.03,125.73,125.7,7.9554]
[1743517522932,0.03,125.73,125.69,7.956]
[1743517522933,39.89745424,125.73,125.69,7.956]
[1743517523431,0.17216157,125.73,125.69,7.956]
[1743517523612,0.03,125.73,125.69,7.956]
[1743517523810,0.03,125.73,125.69,27.8462]
[1743517524110,0.14216157,125.72,125.69,19.8902]
[1743517524310,0.14216157,125.72,125.68,7.9567]
[1743517524616,0.14216157,125.72,125.68,27.8484]
[1743517525124,0.03,125.73,125.68,27.8484]
[1743517526018,0.03,125.73,125.68,19.8917]
[1743517526222,0.03,125.73,125.71,20.0]
[1743517526424,0.28432314,125.79,125.73,20.0]
[1743517526618,0.28432314,125.79,125.74,2.9874]
[1743517526820,2.9117262,125.8,125.74,2.9874]
[1743517527133,0.14216157,125.79,125.74,2.9874]
[1743517528132,2.9117262,125.8,125.75,27.8329]
[1743517528431,2.9117262,125.8,125.78,20.0]
[1743517528614,2.1159362,125.8,125.78,20.0]
[1743517529318,2.1159362,125.8,125.79,20.0]
[1743517529729,2.1159362,125.8,125.76,6.0805]
[1743517529730,2.25809777,125.8,125.76,6.0805]
[1743517530037,2.1159362,125.8,125.76,6.0805]
[1743517530207,2.1159362,125.8,125.77,7.951]
[1743517530408,58.65926467,125.79,125.71,7.9548]
[1743517530608,58.65926467,125.79,125.71,27.8418]
[1743517530609,0.14216157,125.76,125.71,27.8418]
[1743517531010,10.0652362,125.8,125.74,20.0]
[1743517531011,2.1159362,125.8,125.74,20.0]
[1743517531219,18.933972,125.79,125.74,20.0]
[1743517531439,18.933972,125.79,125.71,67.6158]
[1743517531609,18.933972,125.79,125.74,20.0]
[1743517531810,58.65926467,125.79,125.74,20.0]
[1743517532035,18.933972,125.79,125.74,20.0]
[1743517532235,18.933972,125.79,125.75,7.9522]
[1743517532236,0.14216157,125.79,125.75,7.9522]
[1743517532438,0.14216157,125.79,125.75,27.8329]
[1743517532611,2.1459362,125.8,125.75,27.8329]
[1743517532820,18.933972,125.79,125.75,7.9522]
[1743517533624,18.933972,125.79,125.71,27.8418]
[1743517533625,58.65926467,125.79,125.71,27.8418]
[1743517533820,18.933972,125.77,125.71,27.8418]
[1743517534122,50.71122887,125.8,125.71,67.6158]
[1743517534317,2.1459362,125.8,125.71,67.6158]
[1743517534523,2.1459362,125.8,125.74,20.0]
[1743517534837,18.933972,125.79,125.74,20.0]
[1743517535434,2.1459362,125.8,125.76,20.0]
[1743517536215,2.1459362,125.8,125.77,7.951]
[1743517536620,0.14216157,125.79,125.77,7.951]
[1743517536819,58.65926467,125.79,125.75,7.9522]
[1743517537429,18.933972,125.79,125.75,7.9522]
[1743517537934,0.14216157,125.76,125.71,8.82]
[1743517538141,18.79181043,125.75,125.72,7.9541]
[1743517538340,18.79181043,125.75,125.7,27.844]
[1743517538639,18.933972,125.76,125.7,27.844]
[1743517538832,58.65926467,125.76,125.7,27.844]
[1743517539537,18.933972,125.76,125.7,27.844]
[1743517539917,58.65926467,125.76,125.7,27.844]
[1743517540116,0.28432314,125.76,125.7,27.844]
[1743517540345,0.14216157,125.76,125.7,39.7772]
[1743517540547,0.28432314,125.78,125.7,39.7772]
[1743517541015,0.28432314,125.78,125.67,67.6348]
[1743517541218,0.14216157,125.75,125.7,20.0]
[1743517541432,0.14216157,125.75,125.67,67.6348]
[1743517541433,0.14216157,125.73,125.67,67.6348]
[1743517541645,0.14216157,125.73,125.67,27.8506]
[1743517542656,0.14216157,125.74,125.67,27.8506]
[1743517543729,0.14216157,125.72,125.67,27.8506]
[1743517544255,0.14216157,125.73,125.67,27.8506]
[1743517544621,0.28432314,125.74,125.67,27.9136]
[1743517545016,40.00961581,125.74,125.67,27.9136]
[1743517545255,58.65926467,125.75,125.67,67.7003]
[1743517546041,58.65926467,125.75,125.67,27.9136]
[1743517546042,0.14216157,125.72,125.67,27.9136]
[1743517546621,0.14216157,125.74,125.67,27.9136]
[1743517546943,0.14216157,125.74,125.67,67.7003]
[1743517547141,0.28432314,125.75,125.67,67.7003]
[1743517547443,0.14216157,125.74,125.67,67.7003]
[1743517547644,0.28432314,125.74,125.67,67.7003]
[1743517548132,0.14216157,125.73,125.67,67.7003]
[1743517548519,0.14216157,125.73,125.67,27.9136]
[1743517548920,0.14216157,125.73,125.67,67.7003]
[1743517550649,0.28432314,125.74,125.67,67.7003]
[1743517550836,18.933972,125.74,125.67,67.7003]
[1743517551952,0.28432314,125.74,125.67,67.7003]
[1743517553128,8.4483,125.82,125.7,20.0]
[1743517553323,39.72529267,125.84,125.72,3.0828]
[1743517553528,39.72529267,125.83,125.72,3.0828]
[1743517553723,18.79181043,125.81,125.72,3.0828]
[1743517553948,0.14216157,125.84,125.76,20.0]
[1743517554253,0.14216157,125.83,125.78,7.9503]
[1743517554634,0.14216157,125.79,125.78,7.9503]
[1743517555446,0.14216157,125.82,125.78,7.9503]
[1743517556150,0.14216157,125.82,125.77,27.8277]
[1743517557632,0.14216157,125.82,125.78,30.0]
[1743517557832,0.14216157,125.82,125.77,27.8277]
[1743517558556,0.14216157,125.82,125.78,30.0]
[1743517559258,3.62e-05,125.8,125.78,30.0]
[1743517560138,3.62e-05,125.8,125.77,27.8277]
[1743517560658,0.14216157,125.78,125.77,7.951]
[1743517561031,39.86745424,125.78,125.75,7.9522]
[1743517561438,0.14216157,125.78,125.75,7.9522]
[1743517562164,0.14216157,125.76,125.71,27.8418]
[1743517562457,0.14216157,125.76,125.71,19.887]
[1743517562777,18.79181043,125.77,125.71,19.887]
[1743517562778,0.28432314,125.78,125.71,19.887]
[1743517562940,0.14216157,125.76,125.71,19.887]
[1743517563136,40.00961581,125.76,125.7,7.9554]
[1743517563335,58.65926467,125.74,125.7,7.9554]
[1743517563834,18.933972,125.74,125.7,7.9554]
[1743517564238,18.933972,125.75,125.67,47.8048]
[1743517564440,18.933972,125.75,125.67,67.6981]
[1743517564839,0.14216157,125.73,125.67,67.6981]
[1743517565467,18.64964886,125.76,125.7,20.0]
[1743517565768,0.28432314,125.75,125.7,20.0]
[1743517565941,0.14216157,125.75,125.7,20.0]
[1743517566147,18.933972,125.78,125.7,20.0]
[1743517566361,58.65926467,125.78,125.71,27.8418]
[1743517566748,66.60966467,125.78,125.71,27.8418]
[1743517566948,26.884372,125.78,125.71,27.8418]
[1743517567167,18.933972,125.78,125.71,27.8418]
[1743517567359,3.62e-05,125.8,125.74,20.0]
[1743517568341,3.62e-05,125.8,125.75,27.8329]
[1743517568855,0.14219777,125.8,125.75,27.8329]
[1743517569745,58.65930087,125.8,125.75,7.9522]
[1743517570345,18.933972,125.78,125.73,7.9535]
[1743517570565,0.28432314,125.78,125.73,7.9535]
[1743517570773,0.28432314,125.78,125.73,27.8373]
[1743517571473,0.28432314,125.78,125.73,7.9535]
[1743517571694,18.933972,125.76,125.73,7.9535]
[1743517572194,46.11782887,125.8,125.73,27.8373]
[1743517572400,58.65926467,125.79,125.71,67.6153]
[1743517572694,58.65926467,125.79,125.71,27.8418]
[1743517573592,0.14216157,125.77,125.71,27.8418]
[1743517573779,18.933972,125.77,125.71,27.8418]
[1743517574276,18.933972,125.77,125.71,7.9548]
[1743517574277,0.14216157,125.75,125.71,7.9548]
[1743517574688,0.14216157,125.75,125.71,27.8418]
[1743517575192,18.933972,125.77,125.71,27.8418]
[1743517575368,39.72529267,125.79,125.71,27.8418]
[1743517575369,3.62e-05,125.8,125.71,67.6158]
[1743517575577,0.28435934,125.8,125.71,67.6158]
[1743517575776,18.9340082,125.8,125.71,67.6158]
[1743517575970,58.65930087,125.8,125.71,67.6158]
[1743517576279,66.60860087,125.8,125.71,67.6158]
[1743517576601,66.60860087,125.8,125.71,27.8418]
[1743517577299,18.933972,125.78,125.71,27.8418]
[1743517577877,0.28432314,125.76,125.71,7.9548]
[1743517578286,0.28432314,125.76,125.71,27.8418]
[1743517578487,0.28432314,125.76,125.69,27.8462]
[1743517578998,0.14216157,125.74,125.69,27.8462]
[1743517579676,18.933972,125.77,125.69,27.8462]
[1743517580590,18.933972,125.78,125.69,27.8462]
[1743517580788,58.65926467,125.78,125.69,67.6266]
[1743517580998,58.65926467,125.78,125.69,27.8462]
[1743517581380,18.933972,125.76,125.69,27.8462]
[1743517581806,0.28432314,125.76,125.69,27.8462]
[1743517582003,0.14216157,125.75,125.69,27.8462]
[1743517582189,0.28432314,125.75,125.69,27.8462]
[1743517584102,19.8738362,125.8,125.72,20.0]
[1743517584103,3.62e-05,125.8,125.72,20.0]
[1743517584403,3.62e-05,125.8,125.72,28.62]
[1743517584880,3.62e-05,125.8,125.73,27.8373]
[1743517585587,18.933972,125.79,125.73,27.8373]
[1743517585798,0.14216157,125.77,125.73,7.9535]
[1743517585985,18.933972,125.77,125.73,7.9535]
[1743517586909,26.885072,125.77,125.69,67.6266]
[1743517587112,66.61036467,125.77,125.69,67.6266]
[1743517587298,18.933972,125.77,125.69,67.6266]
[1743517587495,39.72529267,125.76,125.69,27.8462]
[1743517587816,18.933972,125.75,125.69,27.8462]
[1743517588488,18.933972,125.76,125.69,27.8462]
[1743517589113,40.00961581,125.74,125.69,7.956]
[1743517589294,0.14216157,125.72,125.69,7.956]
[1743517590125,18.933972,125.74,125.69,7.956]
[1743517590329,0.14216157,125.74,125.69,7.956]
[1743517590784,0.14216157,125.74,125.67,0.063]
[1743517591711,0.14216157,125.74,125.69,0.063]
[1743517592517,0.14216157,125.74,125.69,20.063]
[1743517592837,18.933972,125.76,125.7,27.844]
[1743517596226,39.72529267,125.78,125.7,27.844]
[1743517596227,66.60976467,125.78,125.7,27.844]
[1743517596928,0.14216157,125.76,125.7,27.844]
[1743517597808,0.14216157,125.77,125.7,27.844]
[1743517598904,47.81855424,125.77,125.7,27.844]
[1743517599513,39.86745424,125.77,125.7,27.844]
[1743517599826,0.14216157,125.74,125.7,27.844]
[1743517600024,39.72529267,125.76,125.7,27.844]
[1743517600025,18.933972,125.76,125.7,27.844]
[1743517601028,18.933972,125.76,125.7,19.8886]
[1743517601226,51.56147325,125.76,125.69,8.019]
[1743517601521,0.14216157,125.74,125.69,27.9092]
[1743517602294,0.14216157,125.75,125.69,27.9092]
[1743517603004,18.79181043,125.75,125.69,0.063]
[1743517604418,0.14216157,125.75,125.69,0.063]
[1743517604630,0.14216157,125.75,125.7,20.0]
[1743517605110,0.28432314,125.76,125.71,27.8418]
[1743517605996,0.14216157,125.76,125.71,37.1715]
[1743517606199,0.14216157,125.78,125.71,37.1715]
[1743517607006,0.14216157,125.76,125.71,37.1715]
[1743517607604,0.28432314,125.78,125.71,45.7515]
[1743517608314,0.28432314,125.78,125.71,85.5255]
[1743517608630,18.64964886,125.77,125.71,85.5255]
[1743517608826,0.14216157,125.76,125.71,85.5255]
[1743517609548,0.14216157,125.77,125.71,45.7515]
[1743517609729,24.95972439,125.77,125.71,36.4218]
[1743517610435,0.28432314,125.77,125.71,36.4218]
[1743517610812,8.23532314,125.77,125.71,36.4218]
[1743517611239,0.14216157,125.75,125.71,36.4218]
[1743517611613,0.28432314,125.75,125.71,16.5348]
[1743517611842,0.28432314,125.75,125.7,7.9551]
[1743517613045,8.23672314,125.75,125.69,27.909]
[1743517613344,0.28432314,125.75,125.69,27.909]
[1743517613636,32.91202439,125.75,125.69,27.909]
[1743517613842,24.95972439,125.73,125.69,0.063]
[1743517614622,0.14216157,125.71,125.69,0.063]
[1743517614824,8.09756157,125.7,125.69,0.063]
[1743517615118,51.56477325,125.7,125.69,0.063]
[1743517615513,26.889372,125.7,125.69,0.063]
[1743517615940,18.933972,125.7,125.69,0.063]
[1743517618728,0.14216157,125.7,125.69,0.063]
[1743517618927,18.79181043,125.73,125.69,20.063]
[1743517619125,0.28432314,125.79,125.69,0.063]
[1743517619335,24.95972439,125.79,125.69,0.063]
[1743517619528,24.67540125,125.79,125.71,20.0]
[1743517619728,18.933972,125.78,125.71,20.0]
[1743517620326,3.62e-05,125.8,125.71,28.58]
[1743517620631,18.64968506,125.8,125.72,3.0964]
[1743517620834,0.14216157,125.79,125.72,3.0964]
[1743517621149,0.14216157,125.79,125.74,6.4634]
[1743517621523,0.14219777,125.8,125.74,6.4634]
[1743517621839,3.62e-05,125.8,125.74,6.4634]
[1743517623549,3.62e-05,125.8,125.75,27.8329]
[1743517623922,0.14216157,125.79,125.75,7.9522]
[1743517624351,24.81756282,125.79,125.74,7.9529]
[1743517624660,0.14216157,125.77,125.74,7.9529]
[1743517625174,0.28432314,125.77,125.73,7.9532]
[1743517625669,26.884972,125.77,125.71,6.5955]
[1743517626070,18.933972,125.77,125.71,14.5499]
[1743517626565,51.56057325,125.77,125.71,14.5499]
[1743517626779,18.933972,125.75,125.7,7.9551]
[1743517627376,43.60937325,125.75,125.72,0.063]
[1743517627757,24.67540125,125.73,125.72,0.063]
[1743517627971,43.60937325,125.73,125.72,0.063]
[1743517628273,18.933972,125.73,125.72,0.063]
[1743517628581,43.60937325,125.73,125.72,0.063]
[1743517629879,66.39491527,125.73,125.72,0.063]
[1743517630077,58.44141527,125.73,125.72,0.063]
[1743517630266,18.933972,125.73,125.72,0.063]
[1743517631674,66.39491527,125.73,125.72,0.063]
[1743517631873,58.44141527,125.73,125.72,0.063]
[1743517632079,18.933972,125.73,125.72,0.063]
[1743517633183,66.39491527,125.73,125.72,0.063]
[1743517634663,66.39491527,125.73,125.69,0.063]
[1743517634664,38.933972,125.7,125.69,0.063]
[1743517634864,78.44141527,125.7,125.69,0.063]
[1743517635405,117.94885854,125.7,125.69,0.063]
[1743517635789,78.44141527,125.7,125.69,0.063]
[1743517636469,18.933972,125.7,125.69,0.063]
[1743517639092,58.44141527,125.7,125.69,0.063]
[1743517641574,104.05625854,125.7,125.69,0.063]
[1743517642194,64.54881527,125.7,125.69,0.063]
[1743517642712,0.28432314,125.68,125.67,0.063]
[1743517642869,58.44141527,125.68,125.67,0.063]
[1743517643199,18.933972,125.68,125.67,0.063]
[1743517643382,78.44141527,125.68,125.67,0.063]
[1743517646288,86.39811527,125.68,125.67,0.063]
[1743517646507,78.44141527,125.68,125.67,0.063]
[1743517647112,18.64964886,125.67,125.66,0.063]
[1743517647298,58.44141527,125.67,125.66,0.063]
[1743517648515,66.39871527,125.67,125.66,0.063]
[1743517649915,51.61162508,125.67,125.66,0.063]
[1743517650433,43.65432508,125.67,125.66,0.063]
[1743517651891,52.23432508,125.67,125.66,0.063]
[1743517652413,43.65432508,125.67,125.66,0.063]
[1743517652613,52.23432508,125.67,125.66,0.063]
[1743517652813,0.28432314,125.67,125.66,0.063]
[1743517653392,43.65432508,125.67,125.66,0.063]
[1743517653810,51.61162508,125.67,125.66,0.063]
[1743517655021,60.19162508,125.67,125.66,0.063]
[1743517655393,18.933972,125.67,125.66,0.063]
[1743517655808,43.65432508,125.67,125.66,0.063]
[1743517656216,51.61162508,125.67,125.66,0.063]
[1743517656890,51.61162508,125.67,125.61,0.063]
[1743517656891,18.933972,125.66,125.61,0.063]
[1743517657103,43.65432508,125.62,125.61,0.063]
[1743517657503,51.61482508,125.62,125.61,0.063]
[1743517657913,26.894472,125.62,125.61,0.063]
[1743517658119,51.61482508,125.62,125.61,0.063]
[1743517658808,0.14216157,125.62,125.61,0.063]
[1743517659810,43.65432508,125.62,125.61,0.063]
[1743517660308,51.61482508,125.62,125.61,0.063]
[1743517662526,43.65432508,125.62,125.61,0.063]
[1743517662715,60.19482508,125.62,125.61,0.063]
[1743517664010,0.28432314,125.6,125.59,0.063]
[1743517664213,25.00467622,125.6,125.59,0.063]
[1743517664739,51.61602508,125.6,125.59,0.063]
[1743517666230,43.65432508,125.57,125.56,0.063]
[1743517666510,52.23432508,125.57,125.56,0.063]
[1743517667131,60.19792508,125.57,125.56,0.063]
[1743517669517,20.28432314,125.55,125.54,0.063]
[1743517669734,63.65432508,125.55,125.54,0.063]
[1743517670536,18.933972,125.55,125.54,0.063]
[1743517670724,0.14216157,125.55,125.54,0.063]
[1743517670921,0.14216157,125.59,125.54,0.063]
[1743517671126,0.28432314,125.59,125.55,8.9216]
[1743517673013,0.28432314,125.59,125.56,7.9643]
[1743517674520,0.28432314,125.59,125.55,16.8862]
[1743517674746,0.28432314,125.59,125.55,16.4862]
[1743517675035,18.933972,125.55,125.54,0.063]
[1743517675739,0.28432314,125.55,125.54,0.063]
[1743517677036,18.933972,125.55,125.54,0.063]
[1743517678242,0.28432314,125.55,125.54,0.063]
[1743517679240,51.61922508,125.55,125.54,0.063]
[1743517680342,18.64964886,125.59,125.54,0.063]
[1743517680542,24.72035308,125.58,125.54,0.063]
[1743517680842,43.40000194,125.6,125.54,0.063]
[1743517681339,18.64964886,125.57,125.54,0.063]
[1743517682044,18.64964886,125.55,125.54,0.063]
[1743517682345,43.65432508,125.55,125.54,0.063]
[1743517682643,7.992,125.6,125.54,0.063]
[1743517682955,25.03467622,125.6,125.54,0.063]
[1743517683143,18.64964886,125.59,125.54,0.063]
[1743517683743,18.933972,125.59,125.54,0.063]
[1743517684038,0.28432314,125.59,125.54,0.063]
[1743517684643,0.28432314,125.57,125.54,0.063]
[1743517685824,18.933972,125.57,125.54,0.063]
[1743517686225,63.65432508,125.55,125.54,0.063]
[1743517687246,71.61922508,125.55,125.54,0.063]
[1743517688632,19.433972,125.54,125.53,0.063]
[1743517688838,69.7250293,125.52,125.51,0.063]
[1743517689138,96.95467816,125.52,125.51,0.063]
[1743517689344,80.20112508,125.52,125.51,0.063]
[1743517689652,72.23432508,125.52,125.51,0.063]
[1743517689835,18.933972,125.52,125.51,0.063]
[1743517692234,43.65432508,125.52,125.51,0.063]
[1743517692456,18.933972,125.52,125.51,0.063]
[1743517692759,38.933972,125.52,125.51,0.063]
[1743517693057,76.34147816,125.52,125.51,0.063]
[1743517695161,76.34147816,125.52,125.48,0.063]
[1743517695162,38.933972,125.49,125.48,0.063]
[1743517695373,72.21432508,125.49,125.48,0.063]
[1743517696037,0.28432314,125.51,125.48,0.063]
[1743517696348,18.64964886,125.49,125.48,0.063]
[1743517696664,43.65432508,125.49,125.48,0.063]
[1743517696836,18.933972,125.49,125.48,0.063]
[1743517697039,24.72035308,125.51,125.48,0.063]
[1743517697040,0.28432314,125.5,125.48,0.063]
[1743517698258,18.933972,125.49,125.48,0.063]
[1743517698852,0.28432314,125.49,125.48,0.063]
[1743517699043,0.28432314,125.5,125.48,8.0323]
[1743517699865,24.72035308,125.54,125.49,2.9786]
[1743517700044,0.28432314,125.53,125.49,2.9786]
[1743517700249,0.28432314,125.55,125.49,2.9786]
[1743517700654,18.933972,125.55,125.49,2.9786]
[1743517700855,0.28432314,125.53,125.49,2.9786]
[1743517701065,18.64964886,125.52,125.49,10.9468]
[1743517701268,0.28432314,125.51,125.49,10.9468]
[1743517702071,0.28432314,125.52,125.49,30.8687]
[1743517703177,0.28432314,125.54,125.49,30.8687]
[1743517703780,18.64964886,125.53,125.49,10.9468]
[1743517703982,0.28432314,125.52,125.49,10.9468]
[1743517704877,0.28432314,125.52,125.49,30.8687]
[1743517705179,0.28432314,125.53,125.49,30.8687]
[1743517705369,16.5231,125.58,125.49,30.8687]
[1743517705562,0.28432314,125.54,125.49,30.8687]
[1743517707880,18.933972,125.54,125.49,10.9468]
[1743517708078,0.28432314,125.52,125.49,2.9786]
[1743517708254,0.28432314,125.52,125.49,10.9472]
[1743517709785,18.933972,125.53,125.49,10.9472]
[1743517710359,20.4063,125.59,125.49,10.9472]
[1743517710556,0.28432314,125.55,125.49,10.9472]
[1743517710881,0.03,125.6,125.5,6.0419]
[1743517711064,0.03,125.6,125.52,27.8839]
[1743517711379,0.31432314,125.6,125.52,27.8839]
[1743517711679,18.933972,125.59,125.52,67.7181]
[1743517711883,0.03,125.55,125.52,67.7181]
[1743517712074,0.03,125.6,125.53,2.9349]
[1743517712475,0.03,125.6,125.54,6.4681]
[1743517712680,0.31432314,125.6,125.54,6.4681]
[1743517713180,0.31432314,125.6,125.55,27.8772]
[1743517713776,58.55061616,125.6,125.55,7.9649]
[1743517713966,58.55061616,125.6,125.54,6.4681]
[1743517713967,18.933972,125.58,125.54,14.4333]
[1743517714165,58.52061616,125.58,125.54,7.9652]
[1743517714579,0.28432314,125.59,125.54,7.9652]
[1743517714782,0.28432314,125.59,125.54,27.8791]
[1743517715386,39.8709673,125.59,125.54,7.9652]
[1743517715578,58.23629302,125.58,125.54,7.9652]
[1743517716396,18.64964886,125.58,125.54,7.9652]
[1743517716581,39.8709673,125.59,125.54,7.9652]
[1743517716891,0.28432314,125.57,125.54,27.8791]
[1743517717463,18.82181043,125.6,125.54,27.8791]
[1743517717684,0.17216157,125.6,125.54,27.8791]
[1743517717883,0.31432314,125.6,125.54,67.707]
[1743517718471,0.03,125.6,125.55,14.909]
[1743517719782,0.03,125.6,125.56,27.875]
[1743517720280,39.58664416,125.65,125.56,27.875]
[1743517720281,59.58664416,125.65,125.56,27.875]
[1743517720486,39.58664416,125.65,125.56,27.875]
[1743517721084,39.58664416,125.66,125.56,67.6965]
[1743517721285,39.58664416,125.65,125.56,67.6965]
[1743517721484,39.58664416,125.66,125.57,2.9975]
[1743517721781,14.3455,125.69,125.58,27.8706]
[1743517721782,39.58664416,125.67,125.58,27.8706]
[1743517722088,39.58664416,125.67,125.58,67.6858]
[1743517722281,18.933972,125.66,125.58,67.6858]
[1743517722487,0.28432314,125.66,125.58,67.6858]
[1743517723169,39.8709673,125.64,125.58,27.8706]
[1743517723901,18.933972,125.64,125.58,27.8706]
[1743517725008,39.8709673,125.64,125.58,27.8706]
[1743517726099,18.933972,125.64,125.58,27.8706]
[1743517726577,39.58664416,125.65,125.58,27.8706]